bitfinex-derivatives/quotes_SOLF0:USTF0_20251006
["timestamp","ask_amount","ask_price","bid_price","bid_amount"]
[1759752873121,104.76,233.64,233.61,3.58621323]
[1759752873324,3.65,233.62,233.59,3.58621323]
[1759752873519,2.41950633,233.63,233.59,3.58621323]
[1759752873720,3.65,233.62,233.59,3.58621323]
[1759752873920,2.41950633,233.63,233.59,3.58621323]
[1759752874126,3.65,233.62,233.58,3.58621323]
[1759752874328,2.41950633,233.63,233.59,3.58621323]
[1759752874524,3.66,233.62,233.59,3.58621323]
[1759752874721,6.27030633,233.63,233.59,3.58621323]
[1759752874922,3.66,233.62,233.59,3.58621323]
[1759752875421,3.8508,233.63,233.59,3.58621323]
[1759752875818,3.66,233.62,233.59,3.58621323]
[1759752876023,3.8508,233.63,233.59,3.58621323]
[1759752876221,3.66,233.61,233.58,3.58621323]
[1759752876423,104.74,233.6,233.58,3.58621323]
[1759752876727,3.66,233.59,233.58,3.58621323]
[1759752876923,104.74,233.6,233.57,3.58621323]
[1759752877224,3.66,233.59,233.57,3.58621323]
[1759752877626,108.5913,233.6,233.57,3.58621323]
[1759752878423,3.66,233.59,233.57,3.58621323]
[1759752878824,108.5913,233.6,233.57,3.58621323]
[1759752879122,3.66,233.59,233.57,3.58621323]
[1759752879325,108.5913,233.6,233.57,3.58621323]
[1759752879828,3.66,233.59,233.57,3.58621323]
[1759752881127,104.74,233.6,233.47,2.41950633]
[1759752881128,104.74,233.6,233.56,3.58621323]
[1759752881327,3.66,233.59,233.55,3.58621323]
[1759752881630,104.74,233.6,233.55,3.58621323]
[1759752881820,3.8514,233.59,233.55,3.58621323]
[1759752882027,3.66,233.58,233.55,3.58621323]
[1759752882225,3.8514,233.59,233.55,3.58621323]
[1759752882425,3.66,233.58,233.55,3.58621323]
[1759752882626,3.8514,233.59,233.55,3.58621323]
[1759752883521,3.66,233.58,233.55,3.58621323]
[1759752883921,3.8514,233.59,233.55,3.58621323]
[1759752884126,3.66,233.58,233.55,3.58621323]
[1759752884327,3.8514,233.59,233.55,3.58621323]
[1759752884523,3.66,233.58,233.55,3.58621323]
[1759752884934,3.8514,233.59,233.55,3.58621323]
[1759752885129,3.66,233.58,233.55,3.58621323]
[1759752886532,3.8514,233.59,233.55,3.58621323]
[1759752887028,3.66,233.58,233.55,3.58621323]
[1759752887636,104.64,233.58,233.55,11.49621323]
[1759752887836,104.64,233.58,233.55,3.58621323]
[1759752888136,3.66,233.57,233.55,3.58621323]
[1759752888334,104.64,233.58,233.53,3.58621323]
[1759752888532,104.64,233.58,233.52,3.58621323]
[1759752888948,3.66,233.57,233.52,3.58621323]
[1759752889138,3.66,233.55,233.52,3.58621323]
[1759752889334,104.64,233.54,233.53,3.58621323]
[1759752889938,104.64,233.54,233.53,3.5970989]
[1759752890641,3.66,233.55,233.53,3.5970989]
[1759752890842,99.1,233.54,233.53,3.5970989]
[1759752891343,102.76,233.54,233.53,3.5970989]
[1759752893943,3.66,233.54,233.53,3.5970989]
[1759752894243,3.66,233.54,233.53,3.59675637]
[1759752896143,3.66,233.54,233.52,3.59675637]
[1759752898240,3.66,233.54,233.52,11.22675637]
[1759752898553,104.6,233.55,233.52,3.59675637]
[1759752898843,104.6,233.55,233.53,11.22675637]
[1759752900342,3.66,233.58,233.54,7.63]
[1759752900644,99.42,233.57,233.53,3.59675637]
[1759752901145,103.08,233.57,233.54,7.63]
[1759752901343,3.66,233.56,233.53,3.59675637]
[1759752901544,3.66,233.56,233.53,11.22675637]
[1759752901945,3.66,233.56,233.53,3.59675637]
[1759752902145,3.66,233.56,233.52,3.59675637]
[1759752902547,100.9685688,233.57,233.52,3.59675637]
[1759752902747,3.66,233.53,233.52,3.59675637]
[1759752903446,3.66,233.53,233.51,3.59675637]
[1759752904445,3.8523,233.54,233.51,11.22675637]
[1759752904646,108.3323,233.54,233.51,11.22675637]
[1759752904849,104.48,233.54,233.51,11.22675637]
[1759752905847,108.14,233.54,233.51,11.22675637]
[1759752906640,3.66,233.53,233.51,3.59675637]
[1759752906950,108.3323,233.54,233.52,7.63]
[1759752907450,111.9923,233.54,233.51,3.59675637]
[1759752907650,111.9923,233.54,233.52,11.22675637]
[1759752908347,7.5123,233.54,233.53,3.59675637]
[1759752908551,104.48,233.55,233.54,7.63]
[1759752910346,3.66,233.58,233.53,3.59675637]
[1759752910552,76.94,233.59,233.55,11.22675637]
[1759752910747,7.5114,233.59,233.55,11.22675637]
[1759752911348,76.94,233.6,233.56,3.59675637]
[1759752911652,76.94,233.6,233.57,7.63]
[1759752911852,3.66,233.63,233.57,3.59675637]
[1759752912151,72.94653722,233.74,233.6,7.63]
[1759752912152,104.48,233.62,233.6,7.63]
[1759752912355,3.66,233.64,233.6,7.63]
[1759752913149,3.66,233.64,233.59,3.59675637]
[1759752913350,3.66,233.64,233.6,11.22675637]
[1759752913653,3.66,233.64,233.61,7.63]
[1759752916057,3.66,233.64,233.6,11.22675637]
[1759752918158,3.66,233.64,233.6,3.59675637]
[1759752918462,3.66,233.64,233.61,7.47]
[1759752919855,7.5106,233.64,233.6,3.59675637]
[1759752920059,3.66,233.64,233.6,3.59675637]
[1759752920260,1.5485688,233.62,233.58,3.59675637]
[1759752920458,59.8931,233.66,233.53,7.47]
[1759752920459,3.66,233.58,233.56,3.59675637]
[1759752920958,106.0085688,233.59,233.56,11.06675637]
[1759752921358,109.6685688,233.59,233.56,11.06675637]
[1759752921554,109.6685688,233.59,233.57,3.59675637]
[1759752923256,3.66,233.58,233.57,3.59675637]
[1759752924162,3.66,233.58,233.56,11.06675637]
[1759752924556,3.66,233.58,233.56,3.59675637]
[1759752924962,3.66,233.58,233.57,3.59675637]
[1759752925565,3.66,233.58,233.56,3.59675637]
[1759752926159,109.8599688,233.59,233.56,3.59675637]
[1759752926360,3.66,233.58,233.56,3.59675637]
[1759752927161,109.8599688,233.59,233.56,3.59675637]
[1759752927457,3.66,233.58,233.56,3.59675637]
[1759752928070,3.66,233.57,233.55,3.59675637]
[1759752928270,108.12,233.56,233.55,3.59675637]
[1759752928463,106.0085688,233.56,233.54,3.59675637]
[1759752928663,3.66,233.55,233.54,3.59675637]
[1759752931570,106.0085688,233.56,233.55,7.47]
[1759752931772,106.0085688,233.56,233.55,11.06675637]
[1759752932373,3.66,233.6,233.55,11.06675637]
[1759752932573,86.34,233.59,233.56,3.59675637]
[1759752932872,86.34,233.59,233.57,3.59675637]
[1759752933067,90.0,233.59,233.57,3.59675637]
[1759752933266,90.0,233.59,233.56,11.06675637]
[1759752934474,90.0,233.59,233.56,3.59675637]
[1759752935675,86.34,233.59,233.57,11.06675637]
[1759752936171,80.64453722,233.74,233.58,3.59675637]
[1759752936172,1.5485688,233.64,233.58,3.59675637]
[1759752936370,7.5203,233.66,233.59,3.59675637]
[1759752936574,104.48,233.65,233.61,7.47]
[1759752937077,3.67,233.65,233.61,7.47]
[1759752937278,108.15,233.65,233.61,7.47]
[1759752938276,108.15,233.65,233.61,11.06675637]
[1759752938877,108.15,233.65,233.61,3.59675637]
[1759752939073,108.13,233.65,233.62,11.06675637]
[1759752939279,108.13,233.65,233.62,7.47]
[1759752939680,104.46,233.64,233.62,7.47]
[1759752940174,104.46,233.64,233.61,11.06675637]
[1759752940877,3.8503,233.66,233.63,7.47]
[1759752941082,104.46,233.65,233.63,11.06675637]
[1759752941277,3.67,233.71,233.63,7.47]
[1759752941477,104.46,233.71,233.66,3.59675637]
[1759752942076,104.46,233.71,233.67,7.47]
[1759752942275,3.67,233.7,233.67,7.47]
[1759752942784,3.67,233.7,233.66,3.59675637]
[1759752943580,3.67,233.7,233.61,3.8509]
[1759752943581,3.67,233.7,233.65,3.59675637]
[1759752943885,109.6785688,233.71,233.65,3.59675637]
[1759752944183,3.67,233.67,233.65,3.59675637]
[1759752944478,3.67,233.67,233.55,1.5485688]
[1759752944479,104.46,233.67,233.64,7.47]
[1759752944875,104.46,233.68,233.64,11.06675637]
[1759752945072,108.13,233.68,233.64,3.59675637]
[1759752945275,3.67,233.67,233.63,11.06675637]
[1759752945686,3.67,233.67,233.64,7.47]
[1759752946978,104.46,233.68,233.64,3.59675637]
[1759752947184,104.44,233.69,233.65,3.59675637]
[1759752947786,104.44,233.69,233.66,7.6]
[1759752947985,104.44,233.69,233.67,7.6]
[1759752948493,104.44,233.73,233.66,11.19675637]
[1759752948896,105.9885688,233.73,233.66,11.19675637]
[1759752949294,105.9885688,233.73,233.66,7.6]
[1759752949697,3.8492,233.72,233.66,7.6]
[1759752949901,7.4992,233.72,233.66,7.6]
[1759752950703,7.4992,233.72,233.64,3.59675637]
[1759752950704,3.8495,233.71,233.64,3.59675637]
[1759752951102,105.9885688,233.73,233.62,7.6]
[1759752951103,5.1985688,233.7,233.63,3.59675637]
[1759752951300,104.44,233.69,233.63,3.59675637]
[1759752952700,104.44,233.69,233.62,7.6]
[1759752952701,108.2897,233.69,233.62,11.19675637]
[1759752953003,108.2897,233.69,233.63,3.59675637]
[1759752953797,3.65,233.7,233.63,3.59675637]
[1759752954002,3.65,233.7,233.66,7.6]
[1759752954892,3.65,233.7,233.65,3.59675637]
[1759752955097,3.65,233.7,233.66,7.6]
[1759752956798,17.03,233.71,233.65,7.6]
[1759752957503,43.869,233.73,233.65,15.04705637]
[1759752957803,3.849,233.73,233.65,15.04705637]
[1759752957999,93.649,233.73,233.65,11.19675637]
[1759752958302,7.4993,233.72,233.65,11.19675637]
[1759752958700,7.4993,233.72,233.66,3.59675637]
[1759752958998,3.8495,233.71,233.66,3.59675637]
[1759752959200,7.4995,233.71,233.64,3.59675637]
[1759752959594,3.65,233.71,233.64,11.19675637]
[1759752959794,3.65,233.71,233.65,3.59675637]
[1759752960894,3.65,233.71,233.67,7.6]
[1759752961097,1.5485688,233.72,233.68,7.6]
[1759752962101,108.07,233.74,233.68,7.6]
[1759752962904,108.07,233.74,233.68,11.19675637]
[1759752963109,3.65,233.74,233.69,3.59675637]
[1759752963307,3.65,233.74,233.7,7.6]
[1759752963804,3.65,233.74,233.68,3.59675637]
[1759752964008,3.65,233.74,233.67,3.59675637]
[1759752965407,3.65,233.74,233.67,3.58691715]
[1759752966303,3.65,233.74,233.66,11.18691715]
[1759752967706,3.8493,233.72,233.66,11.18691715]
[1759752973114,9.91537882,233.74,233.67,3.58691715]
[1759752974715,3.8491,233.73,233.67,3.58691715]
[1759752975314,3.65,233.72,233.68,11.18691715]
[1759752976018,3.8491,233.73,233.68,11.18691715]
[1759752976212,3.65,233.72,233.68,11.18691715]
[1759752976417,3.8491,233.73,233.68,11.18691715]
[1759752976720,3.65,233.72,233.68,11.18691715]
[1759752977622,3.65,233.72,233.69,7.6]
[1759752978820,7.4991,233.73,233.69,7.29]
[1759752979022,3.65,233.72,233.69,7.29]
[1759752979419,3.8493,233.72,233.68,3.58691715]
[1759752980023,3.65,233.71,233.68,10.87691715]
[1759752980421,3.65,233.71,233.69,3.58691715]
[1759752980718,3.8493,233.72,233.69,3.58691715]
[1759752980919,3.8493,233.72,233.69,10.87691715]
[1759752981625,7.4993,233.72,233.69,10.87691715]
[1759752982022,7.4993,233.72,233.7,3.58691715]
[1759752982714,3.8495,233.7,233.69,3.58691715]
[1759752982915,7.4995,233.7,233.69,3.58691715]
[1759752983315,3.8495,233.7,233.69,3.42032462]
[1759752983717,7.4992,233.72,233.69,3.42032462]
[1759752983918,2.41647882,233.74,233.71,3.6025108]
[1759752984124,3.65,233.75,233.72,3.42032462]
[1759752984321,106.81647882,233.76,233.73,3.42032462]
[1759752984626,106.81647882,233.76,233.74,3.42032462]
[1759752984627,7.4987,233.75,233.74,3.42032462]
[1759752984921,3.8484,233.77,233.74,10.71032462]
[1759752985121,3.8484,233.77,233.75,3.42032462]
[1759752985320,7.4984,233.77,233.76,3.42032462]
[1759752990326,3.848,233.8,233.76,3.42032462]
[1759752990529,104.38,233.79,233.78,7.29]
[1759752990732,104.38,233.79,233.78,3.42032462]
[1759752991327,108.03,233.79,233.78,3.42032462]
[1759752991927,104.38,233.79,233.78,3.42032462]
[1759752992132,104.38,233.79,233.78,10.71032462]
[1759752992728,104.38,233.79,233.78,3.42032462]
[1759752992927,104.38,233.79,233.78,7.02283542]
[1759752993332,104.38,233.81,233.78,7.02283542]
[1759752993532,104.38,233.81,233.75,7.29]
[1759752993533,3.65,233.8,233.79,3.42032462]
[1759752994731,104.38,233.81,233.8,7.77]
[1759752994932,104.38,233.81,233.8,11.19032462]
[1759752995132,104.38,233.81,233.8,3.42032462]
[1759752995330,3.8475,233.83,233.8,3.42032462]
[1759752995635,3.66,233.82,233.81,3.42032462]
[1759752996337,3.66,233.81,233.76,3.59001099]
[1759752996538,3.66,233.81,233.73,12.55635492]
[1759752996539,3.66,233.81,233.75,3.59001099]
[1759752997137,3.66,233.81,233.74,3.59001099]
[1759752997334,3.66,233.81,233.75,11.36001099]
[1759752997638,3.66,233.81,233.7,3.8495]
[1759752997639,3.66,233.81,233.77,7.77]
[1759752998037,104.38,233.8,233.77,7.77]
[1759752998237,3.66,233.81,233.77,7.77]
[1759752998534,104.38,233.8,233.76,3.59001099]
[1759752998739,104.38,233.8,233.77,7.77]
[1759752999238,3.66,233.81,233.77,7.77]
[1759752999432,104.36,233.8,233.78,7.77]
[1759753002344,3.66,233.79,233.76,3.59001099]
[1759753002538,3.66,233.79,233.75,3.59001099]
[1759753002745,3.66,233.79,233.75,11.36001099]
[1759753002944,108.2079,233.8,233.75,3.59001099]
[1759753003146,111.8679,233.8,233.74,3.59001099]
[1759753003439,108.02,233.8,233.74,3.59001099]
[1759753003647,3.66,233.92,233.75,12.0386]
[1759753003844,3.66,233.92,233.81,12.55635492]
[1759753004143,3.66,233.92,233.84,3.59001099]
[1759753004443,3.66,233.92,233.83,3.59001099]
[1759753004839,3.66,233.92,233.84,7.77]
[1759753005747,3.66,233.92,233.85,3.69756965]
[1759753005936,7.506,233.92,233.86,3.69756965]
[1759753006134,3.66,233.91,233.87,3.69756965]
[1759753006339,106.77647882,233.93,233.88,3.69756965]
[1759753006541,3.846,233.91,233.89,3.69756965]
[1759753006746,3.66,233.9,233.84,7.77]
[1759753007046,7.506,233.91,233.85,3.69674282]
[1759753007246,3.66,233.9,233.86,3.69674282]
[1759753007446,3.66,233.9,233.87,3.69674282]
[1759753007647,3.66,233.9,233.88,3.69674282]
[1759753007945,3.66,233.9,233.89,3.69674282]
[1759753009052,104.36,233.93,233.89,3.69674282]
[1759753009248,3.64,233.92,233.9,3.69674282]
[1759753009547,3.64,233.92,233.91,3.69674282]
[1759753009750,108.24,233.92,233.91,3.69674282]
[1759753009948,108.24,233.92,233.91,4.282e-05]
[1759753010150,108.24,233.92,233.82,7.84]
[1759753010348,108.24,233.92,233.83,3.38658347]
[1759753010547,108.24,233.92,233.84,3.38658347]
[1759753010743,108.24,233.92,233.82,7.84]
[1759753011552,3.8461,233.91,233.82,7.84]
[1759753013446,104.6,233.92,233.84,7.84]
[1759753015656,108.446,233.92,233.84,7.84]
[1759753016360,3.8462,233.91,233.84,7.84]
[1759753018757,3.8464,233.9,233.84,7.84]
[1759753018962,59.8313,233.9,233.8,11.43001099]
[1759753019151,3.64,233.88,233.8,7.84]
[1759753019357,105.02,233.87,233.8,7.84]
[1759753019558,3.8475,233.83,233.8,7.84]
[1759753019766,3.64,233.83,233.77,3.59001099]
[1759753020169,7.4871,233.85,233.81,3.59001099]
[1759753020363,3.64,233.85,233.82,3.56010871]
[1759753020567,105.02,233.89,233.84,7.84]
[1759753020868,108.66,233.89,233.85,3.56010871]
[1759753021063,108.66,233.89,233.86,3.56010871]
[1759753021264,3.64,233.88,233.87,3.56010871]
[1759753021465,3.64,233.88,233.87,3.39949037]
[1759753023176,5.18510039,233.88,233.87,3.39949037]
[1759753026167,5.18510039,233.88,233.87,9.037e-05]
[1759753026364,1.54510039,233.88,233.82,3.59001099]
[1759753026569,5.18510039,233.83,233.81,3.59001099]
[1759753027670,1.54510039,233.83,233.8,3.59001099]
[1759753027871,3.64,233.82,233.79,3.59001099]
[1759753028078,3.8477,233.81,233.79,3.59001099]
[1759753028376,3.64,233.82,233.79,3.59001099]
[1759753028576,3.64,233.82,233.8,3.59001099]
[1759753028777,104.96,233.84,233.81,11.43001099]
[1759753028971,104.96,233.84,233.82,7.84]
[1759753029173,104.96,233.84,233.82,11.43001099]
[1759753029775,104.96,233.84,233.82,3.59001099]
[1759753029972,3.64,233.83,233.81,3.59001099]
[1759753030172,3.64,233.83,233.8,3.59001099]
[1759753030873,7.4875,233.82,233.8,3.59001099]
[1759753031172,3.64,233.81,233.79,3.59001099]
[1759753031368,3.64,233.81,233.8,3.59001099]
[1759753031576,3.64,233.81,233.79,3.59001099]
[1759753031878,3.8475,233.82,233.8,3.59001099]
[1759753032078,7.4875,233.82,233.8,3.59001099]
[1759753032274,3.8475,233.82,233.8,3.59001099]
[1759753033277,9.03260039,233.82,233.8,3.59001099]
[1759753034075,5.39260039,233.82,233.79,3.59001099]
[1759753034279,3.64,233.81,233.8,3.59001099]
[1759753034481,5.39260039,233.82,233.8,3.59001099]
[1759753035276,110.14510039,233.84,233.81,3.59001099]
[1759753035580,3.64,233.83,233.81,3.59001099]
[1759753035782,106.50510039,233.84,233.81,3.59001099]
[1759753035983,108.7674,233.83,233.81,3.59001099]
[1759753036280,3.64,233.87,233.82,7.84]
[1759753036481,3.64,233.91,233.84,11.43001099]
[1759753036681,104.96,233.9,233.87,11.43001099]
[1759753037073,311.3,233.95,233.87,11.43001099]
[1759753037074,311.3,233.95,233.88,3.59001099]
[1759753037280,104.96,233.94,233.88,3.59001099]
[1759753037674,1.54510039,233.92,233.88,3.59001099]
[1759753037882,1.54510039,233.92,233.87,3.59001099]
[1759753038177,104.96,233.94,233.88,7.64]
[1759753038376,3.67,233.91,233.89,3.46356038]
[1759753038577,105.0,233.9,233.87,3.59001099]
[1759753038773,5.21510039,233.89,233.88,3.46370078]
[1759753039278,5.21510039,233.89,233.88,7.8e-07]
[1759753040981,65.04990039,233.89,233.82,3.59001099]
[1759753041183,5.21510039,233.85,233.82,3.59001099]
[1759753041384,108.67,233.84,233.82,3.59001099]
[1759753041582,108.67,233.84,233.81,3.59001099]
[1759753041883,3.67,233.82,233.81,3.59001099]
[1759753042576,5.21510039,233.82,233.81,1.099e-05]
[1759753042877,3.67,233.79,233.74,4.78635492]
[1759753043177,1.54510039,233.79,233.74,7.64]
[1759753043375,105.12,233.78,233.72,4.78635492]
[1759753043578,3.67,233.77,233.71,4.78635492]
[1759753043784,5.21510039,233.76,233.69,12.42635492]
[1759753044176,5.21510039,233.76,233.69,7.64]
[1759753044377,7.5194,233.71,233.67,4.78635492]
[1759753044681,105.14,233.7,233.66,4.78635492]
[1759753045381,7.5197,233.69,233.66,4.78635492]
[1759753045581,105.14,233.7,233.66,7.64]
[1759753045779,3.67,233.8,233.66,7.64]
[1759753046084,5.21510039,233.76,233.68,4.78635492]
[1759753046381,5.21510039,233.76,233.67,12.42635492]
[1759753046984,1.54510039,233.73,233.67,7.64]
[1759753047180,108.91,233.72,233.67,7.64]
[1759753047578,108.91,233.72,233.65,4.78635492]
[1759753047579,105.24,233.72,233.65,4.78635492]
[1759753047984,105.24,233.72,233.64,4.78635492]
[1759753048683,1.54510039,233.7,233.64,4.78635492]
[1759753049081,1.54510039,233.7,233.63,4.78635492]
[1759753050284,105.24,233.72,233.62,7.64]
[1759753050488,105.2,233.71,233.62,7.64]
[1759753051680,1.54510039,233.69,233.62,7.64]
[1759753051884,1.54510039,233.69,233.59,4.78635492]
[1759753052089,1.54510039,233.69,233.58,12.42635492]
[1759753053190,1.54510039,233.69,233.58,7.64]
[1759753054084,105.16,233.68,233.58,7.64]
[1759753054280,3.67,233.7,233.58,1.54510039]
[1759753054487,23.54,233.71,233.62,7.64]
[1759753055084,25.08510039,233.71,233.62,7.64]
[1759753056594,3.8495,233.7,233.62,7.64]
[1759753056891,25.08510039,233.71,233.62,7.64]
[1759753057691,1.54510039,233.68,233.62,7.64]
[1759753059795,1.54510039,233.71,233.62,7.64]
[1759753059996,25.24,233.71,233.63,7.87]
[1759753060294,51.44,233.73,233.64,7.87]
[1759753060792,3.67,233.75,233.64,7.87]
[1759753060990,105.24,233.75,233.64,7.87]
[1759753061387,318.9382,233.79,233.66,7.87]
[1759753061597,105.24,233.78,233.66,7.87]
[1759753061792,315.09,233.79,233.68,1.54510039]
[1759753062097,311.42,233.79,233.72,7.87]
[1759753062291,3.67,233.83,233.72,7.87]
[1759753062503,14.16,233.82,233.72,7.87]
[1759753063093,14.16,233.82,233.72,11.719]
[1759753063792,14.16,233.82,233.72,7.87]
[1759753065692,18.0077,233.82,233.72,7.87]
[1759753068605,5.39300039,233.81,233.72,7.87]
[1759753068898,1.54510039,233.78,233.66,4.78635492]
[1759753069202,1.54510039,233.75,233.67,7.49]
[1759753069703,1.54510039,233.75,233.67,11.34]
[1759753069898,3.66,233.77,233.67,11.34]
[1759753070094,1.54510039,233.75,233.67,11.34]
[1759753070595,1.54510039,233.72,233.63,21.11872594]
[1759753070799,1.54510039,233.69,233.63,21.11872594]
[1759753073012,3.66,233.71,233.63,21.11872594]
[1759753075807,3.66,233.97,233.8,7.49]
[1759753076016,3.66,233.93,233.8,7.49]
[1759753076203,3.66,233.93,233.82,7.49]
[1759753076404,1.54510039,233.92,233.82,7.49]
[1759753077510,1.54510039,233.92,233.83,3.38469996]
[1759753077707,3.66,233.93,233.84,3.38469996]
[1759753077906,5.20510039,233.93,233.85,3.38469996]
[1759753078102,5.20510039,233.93,233.86,3.38469996]
[1759753078310,5.20510039,233.93,233.87,3.38469996]
[1759753078509,3.66,233.92,233.88,3.38469996]
[1759753078712,5.20510039,233.93,233.82,7.49]
[1759753078911,5.20510039,233.93,233.83,3.38329448]
[1759753079111,5.20510039,233.93,233.84,3.38329448]
[1759753079410,5.20510039,233.93,233.85,3.38329448]
[1759753079612,1.54510039,233.9,233.86,3.38329448]
[1759753079808,1.54510039,233.87,233.77,7.49]
[1759753080014,1.54510039,233.87,233.78,3.38414752]
[1759753080213,3.66,233.83,233.79,3.38414752]
[1759753080413,1.54510039,233.84,233.8,3.38414752]
[1759753080613,1.54510039,233.84,233.72,7.49]
[1759753080816,1.54510039,233.84,233.73,3.38595015]
[1759753081011,3.66,233.85,233.74,3.38595015]
[1759753081207,7.5072,233.85,233.75,3.38595015]
[1759753081512,7.5072,233.85,233.76,3.38595015]
[1759753081713,3.66,233.85,233.77,3.38595015]
[1759753081913,3.66,233.91,233.79,7.49]
[1759753082114,3.66,233.91,233.81,7.49]
[1759753082313,3.8456,233.94,233.82,3.38595015]
[1759753082511,7.5056,233.94,233.83,3.38595015]
[1759753082706,3.66,233.94,233.84,3.38595015]
[1759753082907,3.66,233.94,233.85,3.38595015]
[1759753083108,3.66,233.94,233.86,3.38595015]
[1759753083311,3.66,233.94,233.87,3.38595015]
[1759753083517,3.66,233.94,233.88,3.38595015]
[1759753083716,3.66,233.94,233.81,7.49]
[1759753083915,3.8458,233.93,233.82,3.38325688]
[1759753084117,3.8458,233.93,233.83,3.38325688]
[1759753084315,3.8458,233.93,233.84,3.38325688]
[1759753084520,3.8458,233.93,233.85,3.38325688]
[1759753084719,3.8458,233.93,233.86,3.38325688]
[1759753084919,3.8458,233.93,233.87,3.38325688]
[1759753085120,3.8458,233.93,233.81,7.49]
[1759753085323,3.8458,233.93,233.82,3.38349068]
[1759753085515,3.8458,233.93,233.83,3.38349068]
[1759753085712,3.8458,233.93,233.84,3.38349068]
[1759753085911,3.66,233.92,233.81,7.49]
[1759753086110,3.66,233.92,233.82,3.38341946]
[1759753086310,3.66,233.92,233.81,7.49]
[1759753086311,3.66,233.91,233.81,7.49]
[1759753086523,3.8464,233.89,233.82,3.38422593]
[1759753086711,3.66,233.91,233.81,7.49]
[1759753086911,3.66,233.91,233.82,3.38369828]
[1759753087116,3.66,233.91,233.83,3.38369828]
[1759753087318,3.66,233.91,233.81,7.49]
[1759753087623,3.66,233.91,233.82,3.3834312]
[1759753087920,3.66,233.91,233.81,7.49]
[1759753088120,3.66,233.91,233.82,3.38296163]
[1759753088316,3.66,233.91,233.81,7.49]
[1759753088524,3.66,233.91,233.82,3.38250523]
[1759753088723,3.66,233.91,233.83,3.38250523]
[1759753088920,3.66,233.91,233.77,7.49]
[1759753089125,3.66,233.87,233.78,3.38278518]
[1759753089423,3.66,233.85,233.72,7.49]
[1759753089624,3.66,233.85,233.73,3.38433321]
[1759753089822,3.66,233.85,233.74,3.38433321]
[1759753090024,3.66,233.85,233.75,3.38433321]
[1759753090325,3.66,233.85,233.76,3.38433321]
[1759753090514,3.66,233.85,233.77,3.38433321]
[1759753090717,3.66,233.85,233.72,7.49]
[1759753091018,3.66,233.85,233.73,3.38463139]
[1759753091322,3.8476,233.82,233.74,3.38463139]
[1759753091523,3.8476,233.82,233.75,3.38463139]
[1759753091819,3.66,233.85,233.69,4.78635492]
[1759753091820,7.5071,233.85,233.76,3.38463139]
[1759753092024,7.5071,233.85,233.77,3.38463139]
[1759753092223,7.5071,233.85,233.78,3.38463139]
[1759753092424,7.5071,233.85,233.75,7.49]
[1759753092623,7.5071,233.85,233.76,3.38459537]
[1759753092824,7.5071,233.85,233.77,3.38459537]
[1759753093123,7.5071,233.85,233.78,3.38459537]
[1759753093319,7.5071,233.85,233.75,7.49]
[1759753093521,107.32,233.84,233.76,3.38479698]
[1759753093721,3.8474,233.83,233.77,3.38479698]
[1759753093924,3.8474,233.83,233.75,7.49]
[1759753094123,3.8474,233.83,233.76,3.3848267]
[1759753094323,3.8474,233.83,233.69,4.78635492]
[1759753094324,59.855,233.81,233.67,4.78635492]
[1759753094517,63.5218,233.78,233.65,7.49]
[1759753094923,3.849,233.73,233.65,7.49]
[1759753095124,107.38,233.72,233.65,7.49]
[1759753095526,107.38,233.72,233.63,13.62872594]
[1759753096426,3.8497,233.69,233.63,13.62872594]
[1759753096625,107.38,233.72,233.64,7.49]